Cogmind - Beta 13 X1 @@@ ROGUE MODE // 2023.09.19 @ 02:28:12 Player: Decinym Result: Destroyed by B0-OH6(R) with Subdweller Shrapnel Launcher Performance ------------- Evolutions (0) 0 Regions Visited (2) 400 Robots Destroyed (4) 20 Value Destroyed (160) 160 Prototype IDs (0) 0 Alien Tech Used (0) 0 Bonus (0) 0 TOTAL SCORE: 580 Bonus ------- None Cogmind --------- Core Integrity 0/250 Matter 200/300 Energy 3/100 System Corruption 0% Temperature Cool (0) Movement Treading (160) Location -10/Subcaves Parts ------- > --- POWER (1) -------- (None) > --- PROPULSION (2) --- Light Treads Light Treads > --- UTILITY (2) ------ Improved Heat Sink Improved Heat Sink > --- WEAPON (2) ------- Subdweller Laser Beamcaster > --- INVENTORY (5) ---- Light Ion Engine Subdweller Machine Gun Subdweller Shrapnel Launcher Makeshift Spear Scrap Shield Fragment (45) Peak State ------------ > --- POWER ------------ Light Ion Engine > --- PROPULSION ------- Light Treads Light Treads > --- UTILITY ---------- Improved Heat Sink Improved Heat Sink > --- WEAPON ----------- Subdweller Laser Beamcaster > --- INVENTORY -------- Light Ion Engine Subdweller Machine Gun Subdweller Shrapnel Launcher Makeshift Spear Scrap Shield Fragment [Rating: 17] Favorites ----------- Power Light Ion Engine Engine Light Ion Engine Propulsion Aluminum Leg Treads Light Treads Leg Aluminum Leg Utility Improved Heat Sink Device Improved Heat Sink Storage Small Storage Unit Protection Scrap Shield Weapon Light Assault Rifle Energy Gun Subdweller Laser Ballistic Gun Light Assault Rifle Launcher Subdweller Shrapnel Launcher Build | -11 -10 -10 ------- Run | Jun Mat Sub Slots Evolved . | . . . Power . | . . . Propulsion . | . . . Utility . | . . . Weapon . | . . . Parts Attached 13 | . . 13 Power . | . . . Engine . | . . . Core . | . . . Reactor . | . . . Propulsion 2 | . . 2 Treads 2 | . . 2 Leg . | . . . Wheel . | . . . Hover . | . . . Flight . | . . . Utility 4 | . . 4 Device 3 | . . 3 Storage . | . . . Processor . | . . . Hackware . | . . . Protection 1 | . . 1 Artifact . | . . . Weapon 7 | . . 7 Energy Gun 4 | . . 4 Energy Cannon . | . . . Ballistic Gun 2 | . . 2 Ballistic Cannon . | . . . Launcher 1 | . . 1 Special Weapon . | . . . Impact Weapon . | . . . Slashing Weapon . | . . . Piercing Weapon . | . . . Special Melee Weapon . | . . . Unidentified Prototypes . | . . . Parts Lost 3 | . . 3 Power 1 | . . 1 Propulsion . | . . . Utility 1 | . . 1 Weapon 1 | . . 1 Highest Loss Streak 2 | . . 2 To Critical Strikes . | . . . Average Slot Usage (%) 88 | . 85 90 Engine 13 | . 14 13 Treads 10 | . . 16 Leg 17 | . 28 11 Device 9 | . . 15 Storage 5 | . 14 . Protection 2 | . . 4 Energy Gun 10 | . . 16 Ballistic Gun 16 | . 28 10 Naked Turns . | . . . Heaviest Build 26 | 10 10 26 Greatest Support 40 | 20 20 40 Greatest Overweight (x) 1 | . . 1 Average Overweight (x) . | . . . Largest Inventory Capacity 8 | . 8 8 Average Capacity 6 | . 8 5 Most Carried 6 | . 6 6 Average Carried 5 | . 6 4 Final Capacity 8 | 8 8 5 Final Carried 6 | 6 6 5 Class Distribution -------------------- 67% | Mutant 32% | Scavenger-Mutant Dominant Class ---------------- Mutant | -10/Materials Scavenger-Mutant | -10/Subcaves Resources | -11 -10 -10 ----------- Run | Jun Mat Sub Matter Collected 341 | 150 . 191 Remotely . | . . . Salvage Created 101 | . . 101 Parts 9 | . . 9 Haulers Intercepted . | . . . Recyclers Shooed . | . . . Parts Field Recycled . | . . . Retrieved Matter . | . . . Parts Self-Destructed 5 | . . 5 Prevented . | . . . Kills | -11 -10 -10 ------- Run | Jun Mat Sub Combat Hostiles Destroyed 4 | . . 4 Guns 2 | . . 2 AOE 2 | . . 2 Classes Destroyed 1 | . . 1 Subdweller 4 | . . 4 Best Kill Streak 3 | . . 3 Combat Bots Only 3 | . . 3 Max Kills in Single Turn 1 | . . 1 Gunslinging . | . . . Exploded 1 | . . 1 Melee . | . . . Uniques/NPCs Destroyed . | . . . Combat | -11 -10 -10 -------- Run | Jun Mat Sub Damage Taken 977 | . . 977 Core 267 | . . 267 Absorbed by Shields . | . . . Core Remaining (%) 100 | 100 . . Volleys Fired 31 | . . 31 Largest 2 | . . 2 Hottest 135 | . . 135 Shots Fired 48 | . . 48 Gun 44 | . . 44 Cannon . | . . . Launcher 4 | . . 4 Special . | . . . Kinetic 28 | . . 28 Thermal 20 | . . 20 Explosive . | . . . Electromagnetic . | . . . Robot Hit Streak 5 | . . 5 Robot Miss Streak 3 | . . 3 Penetration Max . | . . . Secondary Targets 1 | . . 1 Max Gunslinging Chain 1 | . . 1 Shots Hit Robots 28 | . . 28 Core Hits 11 | . . 11 Critical Kills . | . . . Critical Parts Destroyed 1 | . . 1 Critical Strikes 2 | . . 2 Burn 1 | . . 1 Destroy 1 | . . 1 Melee Attacks . | . . . Impact . | . . . Slashing . | . . . Piercing . | . . . Sneak Attacks . | . . . Combat Hostiles . | . . . Follow-up Attacks . | . . . Damage Inflicted 631 | . . 631 Guns 365 | . . 365 Cannons . | . . . Explosions 266 | . . 266 Melee . | . . . Ramming . | . . . Kinetic 492 | . . 492 Thermal 139 | . . 139 Explosive . | . . . Electromagnetic . | . . . Impact . | . . . Slashing . | . . . Piercing . | . . . Highest Corruption . | . . . Average Corruption . | . . . Corruption Purged . | . . . Corruption Blocked . | . . . Overload Shots . | . . . Overflow Damage . | . . . Projectiles . | . . . Explosions . | . . . Melee . | . . . Knockbacks . | . . . Impact . | . . . Kinetic . | . . . Secondary . | . . . Self-Inflicted Damage 26 | . . 26 Shots 3 | . . 3 Rammed . | . . . Targets Rammed . | . . . Kicked . | . . . Crushed . | . . . Highest Temperature 375 | . . 375 Average Temperature 208 | . . 208 Received Heat Transfer 789 | . . 789 Effects 1 | . . 1 Interference 1 | . . 1 Siege Activations . | . . . Robots Corrupted . | . . . Combat Hostiles . | . . . Parts Fried . | . . . Impact Corruptions . | . . . Robots Melted . | . . . Combat Hostiles . | . . . Parts Melted . | . . . Heat Transferred 285 | . . 285 Parts Sabotaged . | . . . Parts Stolen . | . . . Parts Stripped . | . . . Power Chain Reactions . | . . . Missiles Intercepted . | . . . Alert | -11 -10 -10 ------- Run | Jun Mat Sub Peak Influence . | . . . Initial . | . . . Average . | . . . Maximum Alert Level . | . . . Low Security (%) 100 | . 100 . Level 1 . | . . . Level 2 . | . . . Level 3 . | . . . Level 4 . | . . . Level 5 . | . . . High Security . | . . . Max Security . | . . . Squads Dispatched . | . . . Investigation . | . . . Extermination . | . . . Reinforcement . | . . . Assault . | . . . Garrison . | . . . Intercept . | . . . Searches Triggered . | . . . Construction Impeded . | . . . Haulers Reinforced . | . . . Active Scanning Responses . | . . . Cargo Convoy Interrupts . | . . . Stealth | -11 -10 -10 --------- Run | Jun Mat Sub Distress Signals . | . . . Communications Jammed . | . . . Distress Signals . | . . . Times Spotted 20 | . . 20 Peak Tracking Total 8 | . . 8 Tactical Retreats 1 | . . 1 Traps | -11 -10 -10 ------- Run | Jun Mat Sub Traps Triggered . | . . . Indirectly . | . . . Trap Hack Attempts . | . . . Triggered . | . . . Disarmed . | . . . Reprogrammed . | . . . Reused . | . . . Traps Extracted . | . . . Installed . | . . . Triggered . | . . . Machines | -11 -10 -10 ---------- Run | Jun Mat Sub Machines Disabled . | . . . Max in Single Turn . | . . . Machines Repaired . | . . . Machines Sabotaged . | . . . Overloaded Fab Kills . | . . . Hacking | -11 -10 -10 --------- Run | Jun Mat Sub Machines Accessed . | . . . Terminals . | . . . Fabricators . | . . . Repair Stations . | . . . Recycling Units . | . . . Scanalyzers . | . . . Garrison Access . | . . . Total Hacks . | . . . Successful . | . . . Failed . | . . . Catastrophic . | . . . Database Lockouts . | . . . Manual . | . . . Terminals . | . . . Fabricators . | . . . Repair Stations . | . . . Recycling Units . | . . . Scanalyzers . | . . . Garrison Access . | . . . Terminal Hacks . | . . . Fabricator Hacks . | . . . Repair Station Hacks . | . . . Recycling Unit Hacks . | . . . Scanalyzer . | . . . Garrison Access Hacks . | . . . Unauthorized Hacks . | . . . Terminals . | . . . Fabricators . | . . . Repair Stations . | . . . Recycling Units . | . . . Scanalyzers . | . . . Garrison Access . | . . . Data Cores Recovered . | . . . Used . | . . . Hacking Detections . | . . . Full Trace Events . | . . . Feedback Events . | . . . Feedback Blocked . | . . . Robot Schematics Acquired . | . . . Robots Built . | . . . Authchips . | . . . Time . | . . . Total Robot Build Rating . | . . . Part Schematics Acquired . | . . . Parts Built . | . . . Authchips . | . . . Time . | . . . Total Part Build Rating . | . . . Parts Repaired . | . . . Time . | . . . Parts Recycled . | . . . Recycled Matter . | . . . Retrieved Matter . | . . . Retrieved Components . | . . . Parts Scanalyzed . | . . . Part Schematics Acquired . | . . . Parts Damaged . | . . . Bothacking | -11 -10 -10 ------------ Run | Jun Mat Sub Used RIF Installer . | . . . Robots Hacked . | . . . Non-combat . | . . . Combat . | . . . Robot Hacks Applied . | . . . Relay Couplers Released . | . . . Fabnet Peak Effective % . | . . . Robots Rewired . | . . . Allies Hacked . | . . . Hacks Repelled . | . . . Allies | -11 -10 -10 -------- Run | Jun Mat Sub Total Allies . | . . . Largest Group . | . . . Highest-Rated Group . | . . . Highest-Rated Ally . | . . . Total Orders . | . . . Ally Attacks . | . . . Total Damage . | . . . Kills . | . . . Allies Corrupted . | . . . Allies Melted . | . . . Intel | -11 -10 -10 ------- Run | Jun Mat Sub Robot Analysis Total . | . . . Derelict Logs Recovered 1 | . . 1 Drone Launches . | . . . Drone Recoveries . | . . . Exploration | -11 -10 -10 ------------- Run | Jun Mat Sub Turns Passed 767 | . 285 482 Spaces Moved 242 | 1 14 227 Core . | . . . Treads 151 | . . 151 Legs 91 | 1 14 76 Wheels . | . . . Hover . | . . . Flight . | . . . Fastest Speed 120 | 120 120 120 Average Speed 163 | 120 120 166 Slowest Speed 190 | 120 120 190 Overloaded Moves . | . . . Propulsion Burnouts . | . . . Robots Hopped . | . . . Cave-ins Triggered . | . . . Exploration Rate (%) 9 | 2 5 20 Regions Visited 2 Branch Regions 1 Pre-discovered Areas . | . . . Known Exits Taken . | . . . Unknown Exits Taken 2 | 1 1 . Scrap Searched . | . . . Spaces Dug . | . . . Terrain Destroyed 35 | . . 35 Melee . | . . . Projectile . | . . . AOE 35 | . . 35 Terrain Rammed . | . . . Walls Destroyed . | . . . Machines Disabled . | . . . Actions | -11 -10 -10 --------- Run | Jun Mat Sub Total 570 | . 282 288 Wait 271 | . 269 2 Move 240 | . 13 227 Hop . | . . . Pick Up 4 | . . 4 Fast Attach 7 | . . 7 Attach 1 | . . 1 Detach . | . . . Swap 5 | . . 5 Drop 10 | . . 10 Fire 31 | . . 31 Melee . | . . . Ram . | . . . Kick . | . . . Crush . | . . . Escape Stasis . | . . . Rewire . | . . . Trap . | . . . Miscellaneous 1 | . . 1 Route ------- -11/Junkyard -10/Materials -10/Subcaves History --------- Turn | Location | Event 1 | -11/Junkyard | Discovered new exit (range 0) 1 | -11/Junkyard | Entered Materials 266 | -10/Materials | Discovered new exit (range 8) 286 | -10/Materials | Entered Subcaves 293 | -10/Subcaves | Learned Materials trap positions 311 | -10/Subcaves | Build established: Mutant 402 | -10/Subcaves | Shifting Twisted Machinery released Mak. Spear 404 | -10/Subcaves | Shifting Twisted Machinery released Sub. Monowheel 429 | -10/Subcaves | Ambushed by swarm of Subdwellers 432 | -10/Subcaves | Ambushed by Subdwellers from Twisted Machinery 432 | -10/Subcaves | Ambushed by Subdwellers from Twisted Machinery 432 | -10/Subcaves | Ambushed by Subdwellers from Twisted Machinery 447 | -10/Subcaves | Core integrity fell below 50% 754 | -10/Subcaves | Core integrity fell below 20% 754 | -10/Subcaves | Ambushed by Subdweller buried in earth 754 | -10/Subcaves | Ambushed by Subdweller buried in earth 768 | -10/Subcaves | Destroyed by B0-OH6(R) with Subdweller Shrapnel Launcher Last Messages --------------- 00503_ Acquired Scrap Shield Fragment. 00504_ Acquired 24 matter. 00508_ Acquired 26 matter. 00516_ Dropped Sub. Laser. 00516_ Acquired Beamcaster. 00519_ Acquired Imp. Heat Sink. 00524_ Dropped Disposable Heat Sink. 00525_ Acquired Imp. Heat Sink. 00526_ Acquired 30 matter. 00563_ V4-VM0(u) tweaks Twisted Machinery. 00751_ 9E-4OH(R) knocked back. 00752_ D7-481(h) destroyed. 00754_ 9E-4OH(R) destroyed. 00754_ Switching to secondary target: B0-OH6(R). 00754_ B0-OH6(R) suffers critical hit (Burn). 00754_ Lgt. Ion Engine destroyed. 00755_ FG-BGV(R): "FREEEEDUMB!" 00755_ S0-TTQ(R): "NOSTUCKSUB!" 00758_ S0-TTQ(R) destroyed. 00764_ FG-BGV(R) destroyed. Map ----- +----------------------------------------------------+ | % #?????????????# ##?????????????? | | #????????????# ##??????????????? | | ????????????## ####???????????????? | | # ???????????## ##??????????????????? | | ? ??????????# #???????????????????? | | ? ?????????## ## #???????????????????? | | ?# ???###### ## ###???????????????????? | | ??###???# # ######?????????????????? | | ???????# # ### ##????????????????? | | ??????# #### ### ##???????????????? | | ?????# ????###??# #???????????????? | | ????? ??????????## ## #???????????????? | | ????????????????????#### #???????????????? | | ??????????????????????## #???????????????? | | ??????????????????????# #???????????????? | | ?????????????????????## ##??????????????? | | ?????????????????????# #??????????????? | | ????????????????????## ##?????????????? | | ??????????????????### "" #?????????????? | | ?????????????????##" "####???????????? | | ?????????????????# " ###?????????? | | ?????????????????## "" ##????????? | | ??????????????????# " #????????? | | ??????????????????# ""#; #????????? | | ??????????????????# "#; #?????????? | | ?????????????????# #;@% & #????????? | | ????????????????? R #?????????? | | ?????????????????# " %& #?????????? | | ?????????????????## "" #?????????? | | ??????????????????# " #?????????? | | ??????????????????# "# ###?????????? | | ?????????????????" "######???????????? | | ?????????????????" #????????????????? | | ????????????????" ## % ## ????????????????? | | ??????????????? ?# #?? ????????????????? | | ??????????????? ??# #??? ????????????????? | | ??????????????##???# ???? ????????????????? | | ???????????????????# ???? ????????????????? | | ???????????????????# ???? ????????????????? | | ????????????????????? ?????? ????????????????? | | ?????????????????????????????????????????????? | | ?????????????????????????????????????????????? | | ?????????????????????????????????????????????? | | ?????????????????????????????????????????????? | | ?????????????????????????????????????????????? | | ?????????????????????????????????????????????? | | ?????????????????????????????????????????????? | | ?????????????????????????????????????????????? | | ?????????????????????????????????????????????? | | ?????????????????????????????????????????????? | +----------------------------------------------------+ Best States ------------- Heat Dissipation 53 Coolant Potential 50 Energy Generation 10 Energy Capacity 125 Matter Stores 300 Matter Capacity 300 Sight Range 16 Terrain Scan Density 10 Armor Coverage 800 Evasion (%) 50 Recoil Reduction 2 Item Schematics ----------------- None Robot Schematics ------------------ None Fabricated ------------ Nothing Alien Tech Used ----------------- None Achievements -------------- None Challenges ------------ None Game ------ Seed WarpTractorShield Manual? 0 Play Time 00:06:45 Cumulative 346.6 hours Start 2023.09.19 @ 02:24:37 End 2023.09.19 @ 02:28:12 Sessions 1 Manual Loads 0 Difficulty Rogue Special Mode None Game No. 368 Rogue 368 Adventurer 0 Explorer 0 Win Type - Total 29 Types 16/3/4/1/2/0/3/0/0 Lore% 85 Gallery% 85 Achievement% 82 Wizard Run 0 Options --------- ASCII 0 Keyboard 0 Movement Mouse Keybinds 0 Fullscreen 2 Font 24/Smallcaps Map View 76x50 Tactical HUD 1 Map Filters NONE Filters NONE Steam 1 RUN: cb60933a-dd75-481d-be71-70b2d3ff063b